fUSD/lending_fUSD_20240329
["ID","MTS","AMOUNT","RATE_DAILY","PERIOD"]
[320922956,1711710665981,-500.0,0.00051232,120]
[320922957,1711710665991,-500.0,0.00051232,120]
[320922958,1711710666001,-500.0,0.00051232,120]
[320922959,1711710666011,-500.0,0.00051232,120]
[320922960,1711710666021,-500.0,0.00051232,120]
[320922961,1711710666031,-225.30179204,0.00051232,120]
[320922962,1711710666041,-620.95,0.00051232,120]
[320922963,1711710666052,-500.0,0.00051232,120]
[320922964,1711710666062,-500.0,0.00051232,120]
[320922965,1711710666072,-500.0,0.00051232,120]
[320922966,1711710666083,-500.0,0.00051232,120]
[320922967,1711710666093,-500.0,0.00051232,120]
[320922968,1711710666104,-500.0,0.00051232,2]
[320922969,1711710666116,-550.37,0.00051232,120]
[320922970,1711710666126,-191.04,0.00051232,120]
[320922971,1711710666136,-500.0,0.00051232,120]
[320922972,1711710666147,-500.0,0.00051232,120]
[320922973,1711710666157,-500.0,0.00051232,120]
[320922974,1711710666168,-500.0,0.00051232,120]
[320922975,1711710666178,-338.75246969,0.00051232,120]
[320922976,1711710666188,-500.0,0.00051232,120]
[320922977,1711710666198,-500.0,0.00051232,120]
[320922978,1711710666209,-500.0,0.00051232,120]
[320922979,1711710666219,-530.13,0.00051232,120]
[320922980,1711710666230,-500.0,0.00051232,120]
[320922981,1711710666240,-500.0,0.00051232,120]
[320922982,1711710666251,-500.0,0.00051232,120]
[320922983,1711710666261,-1175.48,0.00051232,120]
[320922984,1711710666272,-500.0,0.00051232,120]
[320922985,1711710666282,-560.38,0.00051232,120]
[320922986,1711710666292,-621.59109236,0.00051232,120]
[320922987,1711710666302,-500.0,0.00051232,120]
[320922988,1711710666312,-500.0,0.00051232,120]
[320922989,1711710666322,-500.0,0.00051232,120]
[320922990,1711710666332,-263.51852701,0.00051232,120]
[320922991,1711710666342,-500.0,0.00051232,120]
[320922992,1711710666352,-1651.49,0.00051232,120]
[320922993,1711710666363,-500.0,0.00051232,120]
[320922994,1711710666373,-693.8,0.00051232,120]
[320922995,1711710666383,-846.89,0.00051232,120]
[320922996,1711710666394,-1205.27,0.00051232,120]
[320922997,1711710666404,-1377.59,0.00051232,120]
[320922998,1711710666414,-500.0,0.00051232,120]
[320922999,1711710666425,-772.01,0.00051232,120]
[320923000,1711710666435,-500.0,0.00051232,120]
[320923001,1711710666446,-1726.42,0.00051232,120]
[320923002,1711710666456,-834.28,0.00051232,120]
[320923003,1711710666466,-7657.04,0.00051232,120]
[320923004,1711710666479,-500.0,0.00051232,120]
[320923005,1711710666489,-1359.1,0.00051232,120]
[320923006,1711710666500,-500.0,0.00051232,120]
[320923007,1711710666510,-610.35,0.00051232,120]
[320923008,1711710666520,-933.59,0.00051232,120]
[320923009,1711710666530,-500.0,0.00051232,120]
[320923010,1711710666540,-815.82,0.00051232,120]
[320923011,1711710666550,-16927.52,0.00051232,120]
[320923012,1711710666561,-1680.26,0.00051232,120]
[320923013,1711710666571,-668.43,0.00051232,120]
[320923014,1711710666581,-2121.86,0.00051232,120]
[320923015,1711710666592,-500.0,0.00051232,120]
[320923016,1711710666603,-982.25,0.00051232,120]
[320923017,1711710666613,-1194.36,0.00051232,120]
[320923018,1711710666624,-1114.26,0.00051232,120]
[320923019,1711710666635,-520.39,0.00051232,120]
[320923020,1711710666648,-500.0,0.00051232,120]
[320923021,1711710666886,-500.0,0.00051232,120]
[320923022,1711710666903,-721.54,0.00051232,120]
[320923023,1711710666914,-1074.5,0.00051232,120]
[320923024,1711710666924,-500.0,0.00051232,120]
[320923025,1711710666934,-921.73,0.00051232,120]
[320923026,1711710666945,-1291.61,0.00051232,120]
[320923027,1711710666954,-1239.65,0.00051232,120]
[320923028,1711710666964,-500.0,0.00051232,120]
[320923029,1711710666975,-500.0,0.00051232,120]
[320923030,1711710666985,-686.91,0.00051232,120]
[320923031,1711710666994,-500.0,0.00051232,120]
[320923032,1711710667004,-6084.84,0.00051232,120]
[320923033,1711710667014,-3042.47,0.00051232,120]
[320923034,1711710667024,-1183.44,0.00051232,120]
[320923035,1711710667033,-651.34,0.00051232,120]
[320923036,1711710667043,-3410.37,0.00051232,120]
[320923037,1711710667053,-810.42,0.00051232,120]
[320923038,1711710667063,-1684.01,0.00051232,120]
[320923039,1711710667073,-799.78,0.00051232,120]
[320923040,1711710667083,-500.0,0.00051232,120]
[320923041,1711710667093,-2073.54,0.00051232,120]
[320923042,1711710667103,-567.77,0.00051232,120]
[320923043,1711710667114,-500.0,0.00051232,120]
[320923044,1711710667123,-947.75,0.00051232,120]
[320923045,1711710667133,-500.0,0.00051232,120]
[320923046,1711710667143,-1168.41,0.00051232,120]
[320923047,1711710667153,-739.84,0.00051232,120]
[320923048,1711710667163,-611.16,0.00051232,120]
[320923049,1711710667173,-500.0,0.00051232,120]
[320923050,1711710667182,-500.0,0.00051232,120]
[320923051,1711710667192,-1516.89,0.00051232,120]
[320923052,1711710667202,-565.45,0.00051232,120]
[320923053,1711710667212,-500.0,0.00051232,120]
[320923054,1711710667221,-915.09,0.00051232,120]
[320923055,1711710667233,-1327.55,0.00051232,120]
[320923056,1711710667243,-2105.94,0.00051232,120]
[320923057,1711710667252,-555.47,0.00051232,120]
[320923058,1711710667262,-1465.08,0.00051232,120]
[320923059,1711710667272,-1119.02,0.00051232,120]
[320923060,1711710667283,-2801.15,0.00051232,120]
[320923061,1711710667293,-1590.52,0.00051232,120]
[320923062,1711710667302,-1260.15,0.00051232,120]
[320923063,1711710667311,-897.12,0.00051232,120]
[320923064,1711710667321,-500.0,0.00051232,120]
[320923065,1711710667331,-987.13,0.00051232,120]
[320923066,1711710667341,-821.77,0.00051232,120]
[320923067,1711710667351,-1164.64,0.00051232,120]
[320923068,1711710667361,-1208.36,0.00051232,120]
[320923069,1711710667370,-2773.26,0.00051232,120]
[320923070,1711710667380,-11808.29,0.00051232,120]
[320923071,1711710667389,-579.48,0.00051232,120]
[320923072,1711710667398,-500.0,0.00051232,120]
[320923073,1711710667408,-857.42,0.00051232,120]
[320923074,1711710667418,-500.0,0.00051232,120]
[320923075,1711710667428,-3628.52,0.00051232,120]
[320923076,1711710667437,-500.0,0.00051232,120]
[320923077,1711710667447,-909.86,0.00051232,120]
[320923078,1711710667457,-1522.9,0.00051232,120]
[320923079,1711710667466,-500.0,0.00051232,120]
[320923080,1711710667477,-804.38,0.00051232,120]
[320923081,1711710667487,-1620.87,0.00051232,120]
[320923082,1711710667496,-2799.29,0.00051232,120]
[320923083,1711710667506,-885.3,0.00051232,120]
[320923084,1711710667516,-904.72,0.00051232,120]
[320923085,1711710667526,-602.06,0.00051232,120]
[320923086,1711710667536,-960.55,0.00051232,120]
[320923087,1711710667545,-1273.78,0.00051232,120]
[320923088,1711710667554,-1913.4,0.00051232,120]
[320923089,1711710667563,-742.11,0.00051232,120]
[320923090,1711710667573,-1248.65,0.00051232,21]
[320923091,1711710667582,-968.95,0.00051232,120]
[320923092,1711710667592,-1163.45,0.00051232,120]
[320923093,1711710667601,-691.01,0.00051232,120]
[320923094,1711710667611,-1903.05,0.00051232,120]
[320923095,1711710667621,-705.61,0.00051232,120]
[320923096,1711710667631,-3676.12,0.00051232,120]
[320923097,1711710667644,-732.51,0.00051232,120]
[320923098,1711710667653,-3161.14,0.00051232,120]
[320923099,1711710667663,-500.0,0.00051232,120]
[320923100,1711710667674,-516.41,0.00051232,120]
[320923101,1711710667686,-1058.48,0.00051232,120]
[320923102,1711710667698,-963.86,0.00051232,120]
[320923103,1711710667708,-789.66,0.00051232,120]
[320923104,1711710667721,-526.41,0.00051232,120]
[320923105,1711710667732,-1501.36,0.00051232,120]
[320923106,1711710667743,-500.0,0.00051232,120]
[320923107,1711710667753,-621.96,0.00051232,120]
[320923108,1711710667762,-500.0,0.00051232,120]
[320923109,1711710667773,-753.8,0.00051232,120]
[320923110,1711710667782,-1147.13,0.00051232,120]
[320923111,1711710667792,-500.0,0.00051232,120]
[320923112,1711710667803,-500.0,0.00051232,120]
[320923113,1711710667813,-2333.25,0.00051232,120]
[320923114,1711710667823,-1023.54,0.00051232,120]
[320923115,1711710667834,-500.0,0.00051232,120]
[320923116,1711710667845,-894.67,0.00051232,120]
[320923117,1711710667854,-1616.3,0.00051232,120]
[320923118,1711710667864,-512.89295352,0.00051232,120]
[320923119,1711710667874,-718.12,0.00051232,120]
[320923120,1711710667884,-1247.71,0.00051232,120]
[320923121,1711710667894,-500.0,0.00051232,120]
[320923122,1711710667904,-500.0,0.00051232,120]
[320923123,1711710667913,-500.0,0.00051232,120]
[320923124,1711710667923,-1571.67,0.00051232,120]
[320923125,1711710667933,-2521.44,0.00051232,120]
[320923126,1711710667943,-338.30723505,0.00051232,120]
[320923127,1711710667953,-517.07,0.00051232,120]
[320923128,1711710667966,-3522.2,0.00051232,120]
[320923129,1711710667979,-500.0,0.00051232,120]
[320923130,1711710667988,-500.0,0.00051232,120]
[320923131,1711710667998,-983.13,0.00051232,120]
[320923132,1711710668007,-1945.43,0.00051245,120]
[320923133,1711710668017,-150.0,0.00051247,30]
[320923134,1711710668027,-150.0,0.00051262,30]
[320923135,1711710668037,-150.0,0.00051298,30]
[320923136,1711710668046,-301.851341,0.000513,13]
[320923137,1711710668055,-150.0,0.00051316,30]
[320923138,1711710668065,-150.0,0.00051334,30]
[320923139,1711710668074,-500.0,0.00051338,90]
[320923140,1711710668084,-150.0,0.00051339,30]
[320923141,1711710668094,-500.0,0.00051357,14]
[320923142,1711710668103,-500.0,0.00051369,30]
[320923143,1711710668114,-150.0,0.0005137,30]
[320923144,1711710668123,-537.0,0.000514,40]
[320923145,1711710668132,-1777.94265,0.000514,2]
[320923146,1711710668141,-150.0,0.00051405,30]
[320923147,1711710668150,-150.0,0.00051431,30]
[320923148,1711710668160,-150.0,0.00051437,30]
[320923149,1711710668169,-150.0,0.00051441,30]
[320923150,1711710668178,-157.032915,0.00051448,109]
[320923151,1711710668187,-150.0,0.00051477,30]
[320923152,1711710668197,-2622.40815795,0.00051498,60]
[320923153,1711710668207,-2000.0,0.000515,60]
[320923154,1711710668217,-639.97990042,0.000515,2]
[320923155,1711710668226,-152.64,0.000515,7]
[320923156,1711710668236,-152.64,0.000515,7]
[320923157,1711710668246,-152.64,0.000515,7]
[320923158,1711710668255,-152.64,0.000515,7]
[320923159,1711710668264,-152.64,0.000515,7]
[320923160,1711710668274,-152.64,0.000515,7]
[320923161,1711710668283,-152.64,0.000515,7]
[320923162,1711710668293,-4391.64,0.000515,7]
[320923163,1711710668303,-4391.64,0.000515,7]
[320923164,1711710668312,-4391.64,0.000515,7]
[320923165,1711710668321,-4391.64,0.000515,7]
[320923166,1711710668331,-4391.64,0.000515,7]
[320923167,1711710668340,-4391.64,0.000515,7]
[320923168,1711710668350,-4391.64,0.000515,7]
[320923169,1711710668359,-4391.64,0.000515,7]
[320923170,1711710668369,-4391.64,0.000515,7]
[320923171,1711710668379,-4391.64,0.000515,7]
[320923172,1711710668388,-4391.64,0.000515,7]
[320923173,1711710668398,-4391.64,0.000515,7]
[320923174,1711710668407,-4391.64,0.000515,7]
[320923175,1711710668417,-4391.64,0.000515,7]
[320923176,1711710668427,-4391.64,0.000515,7]
[320923177,1711710668436,-4391.64,0.000515,7]
[320923178,1711710668446,-4391.64,0.000515,7]
[320923179,1711710668455,-4391.64,0.000515,7]
[320923180,1711710668465,-4391.64,0.000515,7]
[320923181,1711710668476,-4391.64,0.000515,7]
[320923182,1711710668486,-500.0,0.00051506,120]
[320923183,1711710668496,-500.0,0.00051506,120]
[320923184,1711710668507,-500.0,0.00051506,120]
[320923185,1711710668518,-563.98,0.00051506,2]
[320923186,1711710668529,-500.0,0.00051506,120]
[320923187,1711710668540,-500.0,0.00051506,120]
[320923188,1711710668551,-500.0,0.00051506,120]
[320923189,1711710668562,-500.0,0.00051506,120]
[320923190,1711710668573,-530.05,0.00051506,120]
[320923191,1711710668584,-500.0,0.00051506,120]
[320923192,1711710668595,-537.3971664,0.00051506,120]
[320923193,1711710668605,-518.89,0.00051506,120]
[320923194,1711710668614,-500.0,0.00051506,120]
[320923195,1711710668624,-234.90657379,0.00051506,120]
[320923196,1711710668634,-500.0,0.00051506,120]
[320923197,1711710668645,-2712.05,0.00051506,120]
[320923198,1711710668658,-543.34,0.00051506,120]
[320923199,1711710668667,-500.0,0.00051506,120]
[320923200,1711710668677,-500.0,0.00051506,120]
[320923201,1711710668687,-559.05,0.00051506,120]
[320923202,1711710668697,-500.0,0.00051506,120]
[320923203,1711710668707,-500.0,0.00051506,120]
[320923204,1711710668717,-843.31,0.00051506,120]
[320923205,1711710668730,-500.0,0.00051506,120]
[320923206,1711710668741,-500.0,0.00051506,120]
[320923207,1711710668751,-500.0,0.00051506,120]
[320923208,1711710668762,-500.0,0.00051506,120]
[320923209,1711710668771,-500.0,0.00051506,120]
[320923210,1711710668781,-500.0,0.00051506,120]
[320923211,1711710668790,-530.92707635,0.00051506,120]
[320923212,1711710668799,-620.95,0.00051506,120]
[320923213,1711710668809,-500.0,0.00051506,120]
[320923214,1711710668818,-500.0,0.00051506,120]
[320923215,1711710668827,-500.0,0.00051506,120]
[320923216,1711710668837,-500.0,0.00051506,120]
[320923217,1711710668846,-500.0,0.00051506,120]
[320923218,1711710668855,-264.79991036,0.00051506,2]
[320923219,1711710668864,-550.37,0.00051506,120]
[320923220,1711710668874,-191.04,0.00051506,120]
[320923221,1711710668883,-500.0,0.00051506,120]
[320923222,1711710668893,-500.0,0.00051506,120]
[320923223,1711710668902,-500.0,0.00051506,120]
[320923224,1711710668911,-500.0,0.00051506,120]
[320923225,1711710668921,-500.0,0.00051506,120]
[320923226,1711710668931,-500.0,0.00051506,120]
[320923227,1711710668940,-564.0325897,0.00051506,120]
[320923228,1711710668950,-530.13,0.00051506,120]
[320923229,1711710668959,-500.0,0.00051506,120]
[320923230,1711710668969,-500.0,0.00051506,120]
[320923231,1711710668979,-500.0,0.00051506,120]
[320923232,1711710668989,-1175.48,0.00051506,120]
[320923233,1711710668998,-500.0,0.00051506,120]
[320923234,1711710669007,-560.38,0.00051506,120]
[320923235,1711710669016,-500.0,0.00051506,120]
[320923236,1711710669025,-500.0,0.00051506,120]
[320923237,1711710669034,-500.0,0.00051506,120]
[320923238,1711710669044,-500.0,0.00051506,120]
[320923239,1711710669054,-1651.49,0.00051506,120]
[320923240,1711710669063,-500.0,0.00051506,120]
[320923241,1711710669073,-693.8,0.00051506,120]
[320923242,1711710669082,-846.89,0.00051506,120]
[320923243,1711710669092,-1205.27,0.00051506,120]
[320923244,1711710669102,-1377.59,0.00051506,120]
[320923245,1711710669111,-271.71392758,0.00051506,120]
[320923246,1711710669120,-772.01,0.00051506,120]
[320923247,1711710669128,-187.10540977,0.00051506,120]
[320923248,1711710669138,-1726.42,0.00051506,120]
[320923249,1711710669146,-834.28,0.00051506,120]
[320923250,1711710669155,-7657.04,0.00051506,120]
[320923251,1711710669165,-500.0,0.00051506,120]
[320923252,1711710669174,-1359.1,0.00051506,120]
[320923253,1711710669184,-500.0,0.00051506,120]
[320923254,1711710669193,-610.35,0.00051506,120]
[320923255,1711710669202,-933.59,0.00051506,120]
[320923256,1711710669254,-500.0,0.00051506,120]
[320923257,1711710669264,-815.82,0.00051506,120]
[320923258,1711710669274,-16927.52,0.00051506,120]
[320923259,1711710669283,-1680.26,0.00051506,120]
[320923260,1711710669292,-668.43,0.00051506,120]
[320923261,1711710669301,-2121.86,0.00051506,120]
[320923262,1711710669311,-500.0,0.00051506,120]
[320923263,1711710669321,-982.25,0.00051506,120]
[320923264,1711710669331,-1194.36,0.00051506,120]
[320923265,1711710669340,-1114.26,0.00051506,120]
[320923266,1711710669349,-520.39,0.00051506,120]
[320923267,1711710669359,-500.0,0.00051506,120]
[320923268,1711710669370,-500.0,0.00051506,120]
[320923269,1711710669379,-721.54,0.00051506,120]
[320923270,1711710669389,-1074.5,0.00051506,120]
[320923271,1711710669399,-500.0,0.00051506,120]
[320923272,1711710669409,-921.73,0.00051506,120]
[320923273,1711710669419,-1291.61,0.00051506,120]
[320923274,1711710669428,-1239.65,0.00051506,120]
[320923275,1711710669437,-500.0,0.00051506,120]
[320923276,1711710669447,-500.0,0.00051506,120]
[320923277,1711710669456,-686.91,0.00051506,120]
[320923278,1711710669466,-500.0,0.00051506,120]
[320923279,1711710669476,-6084.84,0.00051506,120]
[320923280,1711710669487,-3042.47,0.00051506,120]
[320923281,1711710669496,-1183.44,0.00051506,120]
[320923282,1711710669505,-651.34,0.00051506,120]
[320923283,1711710669515,-151.760302,0.00051506,21]
[320923284,1711710669524,-3410.37,0.00051506,120]
[320923285,1711710669533,-810.42,0.00051506,120]
[320923286,1711710669542,-1684.01,0.00051506,120]
[320923287,1711710669551,-799.78,0.00051506,120]
[320923288,1711710669560,-500.0,0.00051506,120]
[320923289,1711710669569,-2073.54,0.00051506,120]
[320923290,1711710669578,-567.77,0.00051506,120]
[320923291,1711710669588,-500.0,0.00051506,120]
[320923292,1711710669597,-947.75,0.00051506,120]
[320923293,1711710669606,-500.0,0.00051506,120]
[320923294,1711710669616,-1168.41,0.00051506,120]
[320923295,1711710669625,-739.84,0.00051506,120]
[320923296,1711710669635,-611.16,0.00051506,120]
[320923297,1711710669644,-500.0,0.00051506,120]
[320923298,1711710669656,-500.0,0.00051506,120]
[320923299,1711710669665,-1516.89,0.00051506,120]
[320923300,1711710669675,-565.45,0.00051506,120]
[320923301,1711710669683,-915.09,0.00051506,120]
[320923302,1711710669694,-500.0,0.00051506,120]
[320923303,1711710669702,-1327.55,0.00051506,120]
[320923304,1711710669712,-2105.94,0.00051506,120]
[320923305,1711710669721,-555.47,0.00051506,120]
[320923306,1711710669734,-1465.08,0.00051506,120]
[320923307,1711710669743,-1119.02,0.00051506,120]
[320923308,1711710669752,-2801.15,0.00051506,120]
[320923309,1711710669761,-1590.52,0.00051506,120]
[320923310,1711710669770,-1260.15,0.00051506,120]
[320923311,1711710669779,-897.12,0.00051506,120]
[320923312,1711710669788,-500.0,0.00051506,120]
[320923313,1711710669797,-987.13,0.00051506,120]
[320923314,1711710669807,-821.77,0.00051506,120]
[320923315,1711710669816,-1164.64,0.00051506,120]
[320923316,1711710669826,-1208.36,0.00051506,120]
[320923317,1711710669835,-2773.26,0.00051506,120]
[320923318,1711710669845,-11808.29,0.00051506,120]
[320923319,1711710669855,-579.48,0.00051506,120]
[320923320,1711710669864,-500.0,0.00051506,120]
[320923321,1711710669873,-857.42,0.00051506,120]
[320923322,1711710669883,-297.57169885,0.00051506,120]
[320923323,1711710669893,-3628.52,0.00051506,120]
[320923324,1711710669903,-500.0,0.00051506,120]
[320923325,1711710669912,-909.86,0.00051506,120]
[320923326,1711710669922,-1522.9,0.00051506,120]
[320923327,1711710669932,-500.0,0.00051506,120]
[320923328,1711710669942,-804.38,0.00051506,120]
[320923329,1711710669951,-1620.87,0.00051506,120]
[320923330,1711710669961,-2799.29,0.00051506,120]
[320923331,1711710669970,-885.3,0.00051506,120]
[320923332,1711710669981,-904.72,0.00051506,120]
[320923333,1711710669991,-602.06,0.00051506,120]
[320923334,1711710670000,-960.55,0.00051506,120]
[320923335,1711710670010,-1273.78,0.00051506,120]
[320923336,1711710670020,-1913.4,0.00051506,120]
[320923337,1711710670029,-742.11,0.00051506,120]
[320923338,1711710670039,-1248.65,0.00051506,21]
[320923339,1711710670048,-968.95,0.00051506,120]
[320923340,1711710670058,-1163.45,0.00051506,120]
[320923341,1711710670067,-691.01,0.00051506,120]
[320923342,1711710670077,-1903.05,0.00051506,120]
[320923343,1711710670086,-705.61,0.00051506,120]
[320923344,1711710670096,-3676.12,0.00051506,120]
[320923345,1711710670106,-732.51,0.00051506,120]
[320923346,1711710670116,-3161.14,0.00051506,120]
[320923347,1711710670125,-500.0,0.00051506,120]
[320923348,1711710670135,-516.41,0.00051506,120]
[320923349,1711710670144,-1058.48,0.00051506,120]
[320923350,1711710670154,-963.86,0.00051506,120]
[320923351,1711710670163,-789.66,0.00051506,120]
[320923352,1711710670173,-526.41,0.00051506,120]
[320923353,1711710670182,-1501.36,0.00051506,120]
[320923354,1711710670192,-500.0,0.00051506,120]
[320923355,1711710670201,-621.96,0.00051506,120]
[320923356,1711710670211,-500.0,0.00051506,120]
[320923357,1711710670220,-753.8,0.00051506,120]
[320923358,1711710670231,-1147.13,0.00051506,120]
[320923359,1711710670240,-500.0,0.00051506,120]
[320923360,1711710670249,-500.0,0.00051506,120]
[320923361,1711710670258,-2333.25,0.00051506,120]
[320923362,1711710670268,-1023.54,0.00051506,120]
[320923363,1711710670277,-500.0,0.00051506,120]
[320923364,1711710670287,-894.67,0.00051506,120]
[320923365,1711710670297,-1616.3,0.00051506,120]
[320923366,1711710670306,-718.12,0.00051506,120]
[320923367,1711710670315,-1247.71,0.00051506,120]
[320923368,1711710670324,-500.0,0.00051506,120]
[320923369,1711710670334,-500.0,0.00051506,120]
[320923370,1711710670343,-157.501016,0.00051506,120]
[320923371,1711710670353,-553.27066093,0.00051506,120]
[320923372,1711710670363,-1571.67,0.00051506,120]
[320923373,1711710670373,-2521.44,0.00051506,120]
[320923374,1711710670382,-517.07,0.00051506,120]
[320923375,1711710670392,-3522.2,0.00051506,120]
[320923376,1711710670401,-500.0,0.00051506,120]
[320923377,1711710670410,-500.0,0.00051506,120]
[320923378,1711710670420,-983.13,0.00051506,120]
[320923379,1711710670429,-500.0,0.00051507,14]
[320923380,1711710670439,-150.0,0.00051513,30]
[320923381,1711710670448,-2000.0,0.00051517,5]
[320923382,1711710670457,-2000.0,0.00051517,5]
[320923383,1711710670466,-150.0,0.00051523,30]
[320923384,1711710670476,-25000.0,0.00051539,35]
[320923385,1711710670486,-10756.89608974,0.00051539,35]
[320923386,1711710670495,-376.5366058,0.00051539,35]
[320923387,1711710670504,-885.62792818,0.00051539,35]
[320923388,1711710670513,-150.0,0.00051549,30]
[320923389,1711710670522,-150.0,0.00051558,30]
[320923390,1711710670531,-150.0,0.00051585,30]
[320923391,1711710670540,-155.03328018,0.00051599,120]
[320923392,1711710670550,-1004.12,0.000516,30]
[320923393,1711710670559,-150.0,0.00051616,30]
[320923394,1711710670569,-308.43333333,0.00051616,120]
[320923395,1711710670578,-150.0,0.00051621,30]
[320923396,1711710670587,-500.0,0.00051656,14]
[320923397,1711710670596,-150.0,0.00051657,30]
[320923398,1711710670606,-150.0,0.00051679,30]
[320923399,1711710670614,-153.21053774,0.0005169,84]
[320923400,1711710670624,-150.0,0.00051692,30]
[320923401,1711710670633,-1037.11921943,0.000517,5]
[320923402,1711710670644,-5000.0,0.000517,15]
[320923403,1711710670653,-473.0,0.000517,29]
[320923404,1711710670664,-150.0,0.00051708,30]
[320923405,1711710670673,-150.0,0.00051728,30]
[320923406,1711710670682,-157.032915,0.00051748,110]
[320923407,1711710670692,-150.0,0.00051764,30]
[320923408,1711710670701,-211.0,0.0005177,30]
[320923409,1711710670710,-211.0,0.0005177,30]
[320923410,1711710670719,-216.0,0.0005177,30]
[320923411,1711710670730,-217.0,0.0005177,30]
[320923412,1711710670740,-202.0,0.0005177,30]
[320923413,1711710670749,-1027.0,0.0005178,30]
[320923414,1711710670758,-500.0,0.0005178,120]
[320923415,1711710670768,-185.53650916,0.0005178,120]
[320923416,1711710670777,-500.0,0.0005178,120]
[320923417,1711710670786,-563.98,0.0005178,2]
[320923418,1711710670796,-500.0,0.0005178,120]
[320923419,1711710670805,-500.0,0.0005178,120]
[320923420,1711710670815,-500.0,0.0005178,120]
[320923421,1711710670824,-500.0,0.0005178,120]
[320923422,1711710670833,-530.05,0.0005178,120]
[320923423,1711710670842,-583.56967095,0.0005178,120]
[320923424,1711710670851,-518.89,0.0005178,120]
[320923425,1711710670860,-500.0,0.0005178,120]
[320923426,1711710670869,-500.0,0.0005178,120]
[320923427,1711710670879,-2712.05,0.0005178,120]
[320923428,1711710670889,-543.34,0.0005178,120]
[320923429,1711710670898,-428.60482501,0.0005178,120]
[320923430,1711710670908,-500.0,0.0005178,120]
[320923431,1711710670917,-559.05,0.0005178,120]
[320923432,1711710670926,-500.0,0.0005178,120]
[320923433,1711710670936,-500.0,0.0005178,120]
[320923434,1711710670945,-843.31,0.0005178,120]
[320923435,1711710670954,-500.0,0.0005178,120]
[320923436,1711710670964,-500.0,0.0005178,120]
[320923437,1711710670974,-500.0,0.0005178,120]
[320923438,1711710670986,-500.0,0.0005178,120]
[320923439,1711710670995,-500.0,0.0005178,120]
[320923440,1711710671004,-500.0,0.0005178,120]
[320923441,1711710671016,-620.95,0.0005178,120]
[320923442,1711710671027,-500.0,0.0005178,120]
[320923443,1711710671036,-500.0,0.0005178,120]
[320923444,1711710671047,-500.0,0.0005178,120]
[320923445,1711710671058,-511.45280962,0.0005178,120]
[320923446,1711710671067,-500.0,0.0005178,120]
[320923447,1711710671077,-550.37,0.0005178,120]
[320923448,1711710671086,-191.04,0.0005178,120]
[320923449,1711710671094,-500.0,0.0005178,120]
[320923450,1711710671103,-500.0,0.0005178,120]
[320923451,1711710671112,-500.0,0.0005178,120]
[320923452,1711710671121,-500.0,0.0005178,120]
[320923453,1711710671131,-500.0,0.0005178,120]
[320923454,1711710671140,-441.44966263,0.0005178,120]
[320923455,1711710671149,-530.13,0.0005178,120]